bitfinex/quotes_BTCUSD_20250610
["timestamp","ask_amount","ask_price","bid_price","bid_amount"]
[1749566291673,0.5794242,108790.0,108780.0,0.0913934]
[1749566292596,0.5794242,108790.0,108780.0,4e-05]
[1749566293872,0.5644242,108790.0,108780.0,4e-05]
[1749566294578,0.5806242,108790.0,108780.0,4e-05]
[1749566296556,0.6874242,108790.0,108780.0,4e-05]
[1749566296773,0.6711842,108790.0,108780.0,4e-05]
[1749566297033,0.6871842,108790.0,108780.0,4e-05]
[1749566298886,0.6869842,108790.0,108780.0,4e-05]
[1749566299617,0.5644242,108790.0,108780.0,4e-05]
[1749566299838,0.6546642,108790.0,108780.0,4e-05]
[1749566300530,0.6700642,108790.0,108780.0,4e-05]
[1749566300780,1.31868288,108790.0,108780.0,4e-05]
[1749566301017,1.31668288,108790.0,108780.0,4e-05]
[1749566301930,0.7151042,108790.0,108780.0,4e-05]
[1749566302137,0.7161042,108790.0,108780.0,4e-05]
[1749566303209,0.5796242,108790.0,108780.0,4e-05]
[1749566303423,0.6856642,108790.0,108780.0,4e-05]
[1749566304281,0.6846642,108790.0,108780.0,4e-05]
[1749566305271,1.40963628,108790.0,108780.0,4e-05]
[1749566306844,1.5740724,108790.0,108780.0,4e-05]
[1749566307316,1.6240724,108790.0,108780.0,4e-05]
[1749566307744,1.55098968,108790.0,108780.0,4e-05]
[1749566309290,1.58270968,108790.0,108780.0,4e-05]
[1749566311292,1.63270968,108790.0,108780.0,4e-05]
[1749566311727,1.75182968,108790.0,108780.0,4e-05]
[1749566311941,0.53305001,108780.0,108770.0,4e-05]
[1749566312204,0.85203681,108780.0,108770.0,4e-05]
[1749566312413,1.51789549,108780.0,108770.0,4e-05]
[1749566313037,1.38037549,108780.0,108770.0,4e-05]
[1749566313256,1.51781549,108780.0,108770.0,4e-05]
[1749566314757,1.51981549,108780.0,108770.0,4e-05]
[1749566314936,1.52181549,108780.0,108770.0,4e-05]
[1749566316703,1.38437549,108780.0,108770.0,4e-05]
[1749566316916,1.52029549,108780.0,108770.0,4e-05]
[1749566317621,2.20391417,108780.0,108770.0,4e-05]
[1749566317835,2.25391417,108780.0,108770.0,4e-05]
[1749566318050,1.62029549,108780.0,108770.0,4e-05]
[1749566321435,2.33210123,108780.0,108770.0,4e-05]
[1749566321693,3.0541616,108780.0,108760.0,4e-05]
[1749566321940,0.54231701,108740.0,108730.0,8e-05]
[1749566322184,2.28822823,108740.0,108730.0,8e-05]
[1749566322681,1.45443602,108740.0,108730.0,8e-05]
[1749566322904,1.43813602,108740.0,108730.0,8e-05]
[1749566323129,1.45453602,108740.0,108730.0,8e-05]
[1749566323378,1.52741418,108740.0,108730.0,8e-05]
[1749566324045,1.55537973,108740.0,108730.0,8e-05]
[1749566324517,1.55637973,108740.0,108730.0,8e-05]
[1749566324992,1.56558847,108740.0,108730.0,8e-05]
[1749566325663,1.54918847,108740.0,108730.0,8e-05]
[1749566326131,1.41314847,108740.0,108730.0,8e-05]
[1749566326357,1.54890847,108740.0,108730.0,8e-05]
[1749566328520,0.9143581,108740.0,108730.0,8e-05]
[1749566328696,1.41314847,108740.0,108730.0,8e-05]
[1749566328951,1.54870847,108740.0,108730.0,8e-05]
[1749566330027,1.54858847,108740.0,108730.0,8e-05]
[1749566331109,0.9140381,108740.0,108730.0,8e-05]
[1749566331331,1.54858847,108740.0,108730.0,8e-05]
[1749566331962,1.54846847,108740.0,108730.0,8e-05]
[1749566333433,1.54838847,108740.0,108730.0,8e-05]
[1749566333640,1.39774847,108740.0,108730.0,8e-05]
[1749566333868,0.6718447,108740.0,108730.0,8e-05]
[1749566334085,1.35024167,108740.0,108730.0,0.02404889]
[1749566334298,1.35024167,108740.0,108730.0,0.04014857]
[1749566334702,1.21504167,108740.0,108730.0,0.04014857]
[1749566334910,1.35024167,108740.0,108730.0,0.04014857]
[1749566335155,1.44159507,108740.0,108730.0,0.04014857]
[1749566335356,1.30639507,108740.0,108730.0,0.04014857]
[1749566335564,1.44151507,108740.0,108730.0,0.04014857]
[1749566335773,1.44147507,108740.0,108730.0,0.04016128]
[1749566336191,1.44147507,108740.0,108730.0,0.04016144]
[1749566337048,1.44147507,108740.0,108730.0,0.02406144]
[1749566337383,0.8069247,108740.0,108730.0,0.02406144]
[1749566337587,1.44147507,108740.0,108730.0,0.02406144]
[1749566337809,1.44147507,108740.0,108730.0,0.02406593]
[1749566338034,1.44147507,108740.0,108730.0,0.02406604]
[1749566338586,1.44147507,108740.0,108730.0,0.02406743]
[1749566339227,1.44147507,108740.0,108730.0,0.02406745]
[1749566339439,1.44147507,108740.0,108730.0,0.01548]
[1749566339657,1.44147507,108740.0,108730.0,0.02406745]
[1749566340108,1.44147507,108740.0,108730.0,0.02406759]
[1749566341129,1.44147507,108740.0,108730.0,0.02407168]
[1749566342039,1.44147507,108740.0,108730.0,0.02407163]
[1749566342953,1.44147507,108740.0,108730.0,0.02407437]
[1749566343847,0.58248575,108740.0,108730.0,0.02407554]
[1749566344057,0.58248575,108740.0,108730.0,0.01548]
[1749566344058,1.32027612,108740.0,108730.0,0.01548]
[1749566344471,1.32027612,108740.0,108730.0,0.02407532]
[1749566344683,1.32027612,108740.0,108730.0,8e-05]
[1749566344898,1.42782952,108740.0,108730.0,0.00867885]
[1749566345113,1.53458292,108740.0,108730.0,0.00867885]
[1749566345331,2.29627695,108740.0,108730.0,0.00867885]
[1749566345745,1.58275475,108740.0,108730.0,8e-05]
[1749566346166,1.58275475,108740.0,108730.0,0.00867971]
[1749566346421,1.58275475,108740.0,108730.0,8e-05]
[1749566346651,1.58275475,108740.0,108730.0,0.00867967]
[1749566347565,1.58275475,108740.0,108730.0,0.00868637]
[1749566347807,1.46056761,108740.0,108730.0,0.00868642]
[1749566348028,1.59360761,108740.0,108730.0,8e-05]
[1749566348245,1.59360761,108740.0,108730.0,0.00868627]
[1749566349171,1.59360761,108740.0,108730.0,0.00868636]
[1749566349389,1.59360761,108740.0,108730.0,0.00868635]
[1749566350069,1.59360761,108740.0,108730.0,0.00868634]
[1749566350350,1.59360761,108740.0,108730.0,0.00869137]
[1749566350590,1.46056761,108740.0,108730.0,0.00869137]
[1749566350818,1.36921421,108740.0,108730.0,0.00869137]
[1749566351041,1.50201421,108740.0,108730.0,8e-05]
[1749566351701,1.50201421,108740.0,108730.0,0.00869142]
[1749566352139,1.36921421,108740.0,108730.0,0.00869145]
[1749566352361,1.50189421,108740.0,108730.0,0.00869145]
[1749566352581,1.50185421,108740.0,108730.0,0.00869223]
[1749566352820,1.36921421,108740.0,108730.0,0.01638]
[1749566353087,1.50181421,108740.0,108730.0,0.0249922]
[1749566353324,1.36921421,108740.0,108730.0,0.04109215]
[1749566353551,1.50181421,108740.0,108730.0,0.03248]
[1749566354713,1.34200135,108740.0,108730.0,0.03248]
[1749566354930,1.47456135,108740.0,108730.0,0.03248]
[1749566355416,1.47448135,108740.0,108730.0,0.03248]
[1749566356451,1.34200135,108740.0,108730.0,0.03248]
[1749566356673,1.47440135,108740.0,108730.0,0.03248]
[1749566357080,0.77627915,108740.0,108730.0,0.03248]
[1749566357285,1.47440135,108740.0,108730.0,0.03248]
[1749566358836,2.08117015,108740.0,108730.0,0.01638]
[1749566359071,2.08117015,108740.0,108730.0,8e-05]
[1749566359279,1.38304795,108740.0,108730.0,8e-05]
[1749566359494,1.38304795,108740.0,108730.0,0.01588]
[1749566360134,0.55252575,108740.0,108730.0,0.01588]
[1749566360355,0.55252575,108740.0,108730.0,0.03108]
[1749566360356,1.38284795,108740.0,108730.0,0.03108]
[1749566361003,1.38284795,108740.0,108730.0,8e-05]
[1749566361200,1.47420135,108740.0,108730.0,8e-05]
[1749566361744,1.50231036,108740.0,108730.0,8e-05]
[1749566362182,1.50231036,108740.0,108730.0,0.01508]
[1749566362641,1.50219036,108740.0,108730.0,0.01508]
[1749566363550,1.50219036,108740.0,108730.0,8e-05]
[1749566363782,2.20031256,108740.0,108730.0,8e-05]
[1749566364016,2.23121256,108740.0,108730.0,8e-05]
[1749566364277,2.32256596,108740.0,108730.0,8e-05]
[1749566364502,2.32256596,108740.0,108730.0,0.00869296]
[1749566364742,2.32256596,108740.0,108730.0,0.00869273]
[1749566364969,2.32256596,108740.0,108730.0,0.00869279]
[1749566365189,2.32256596,108740.0,108730.0,0.00869281]
[1749566365417,2.32256596,108740.0,108730.0,8e-05]
[1749566368422,2.32156596,108740.0,108730.0,8e-05]
[1749566368633,2.32556596,108740.0,108730.0,8e-05]
[1749566371448,0.21305879,108730.0,108720.0,0.00204]
[1749566371659,1.80277659,108730.0,108720.0,0.0106456]
[1749566373762,2.14277659,108730.0,108720.0,0.0265456]
[1749566373978,2.14277659,108730.0,108720.0,0.02654302]
[1749566374655,2.14277659,108730.0,108720.0,0.02654331]
[1749566374875,2.14277659,108730.0,108720.0,0.0265433]
[1749566376930,2.14277659,108730.0,108720.0,0.01794]
[1749566377130,2.14277659,108730.0,108720.0,0.02654175]
[1749566377609,1.38258099,108730.0,108720.0,0.02654175]
[1749566377780,1.38258099,108730.0,108720.0,0.04224222]
[1749566377934,1.25118099,108730.0,108720.0,0.04224222]
[1749566378158,1.28046099,108730.0,108720.0,0.03364]
[1749566378364,1.38258099,108730.0,108720.0,0.03364]
[1749566378558,1.38258099,108730.0,108720.0,0.04224158]
[1749566378757,0.68445879,108730.0,108720.0,0.03364]
[1749566378959,1.38258099,108730.0,108720.0,0.03364]
[1749566379853,1.38258099,108730.0,108720.0,0.042242]
[1749566380055,1.38258099,108730.0,108720.0,0.03364]
[1749566380255,0.68445879,108730.0,108720.0,0.03364]
[1749566380673,1.38258099,108730.0,108720.0,0.03364]
[1749566381279,1.38258099,108730.0,108720.0,0.0422408]
[1749566382517,1.25118099,108730.0,108720.0,0.0422408]
[1749566382722,0.94042099,108730.0,108720.0,0.0422408]
[1749566382929,1.04254099,108730.0,108720.0,0.0422408]
[1749566383141,0.91118099,108730.0,108720.0,0.0422408]
[1749566384598,0.90198407,108730.0,108720.0,0.0422408]
[1749566384803,0.20386187,108730.0,108720.0,0.0422408]
[1749566385004,0.90198407,108730.0,108720.0,0.0422408]
[1749566386051,0.20386187,108730.0,108720.0,0.1611384]
[1749566386262,0.90198407,108730.0,108720.0,0.1611384]
[1749566386465,0.7180422,108730.0,108720.0,0.1611384]
[1749566387725,0.7180422,108730.0,108720.0,0.17120656]
[1749566387931,0.7180422,108730.0,108720.0,0.17220656]
[1749566388612,0.7180422,108730.0,108720.0,0.17120656]
[1749566388824,0.7180422,108730.0,108720.0,0.17220656]
[1749566389883,0.7180422,108730.0,108720.0,0.1631384]
[1749566392709,1.0580422,108730.0,108720.0,0.1355942]
[1749566392915,1.0580422,108730.0,108720.0,0.1631384]
[1749566393378,1.0580422,108730.0,108720.0,0.1355942]
[1749566393782,1.0580422,108730.0,108720.0,0.17233868]
[1749566394210,0.35992,108730.0,108720.0,0.17233868]
[1749566394416,1.0580422,108730.0,108720.0,0.17233868]
[1749566395033,0.35992,108730.0,108720.0,0.17233868]
[1749566395266,1.0580422,108730.0,108720.0,0.17233868]
[1749566397480,0.35992,108730.0,108720.0,0.17233868]
[1749566397698,1.0580422,108730.0,108720.0,0.17233868]
[1749566397921,0.01992,108730.0,108720.0,0.98708173]
[1749566398145,0.01992,108730.0,108720.0,1.0512116]
[1749566398619,0.01992,108730.0,108720.0,0.3530894]
[1749566398848,0.01992,108730.0,108720.0,0.2510094]
[1749566399074,0.7180422,108730.0,108720.0,0.27434487]
[1749566399306,0.7180422,108730.0,108720.0,0.16309554]
[1749566399537,0.7180422,108730.0,108720.0,0.14739554]
[1749566399795,0.7180422,108730.0,108720.0,0.16359554]
[1749566400238,0.7180422,108730.0,108720.0,0.1198942]
[1749566402089,0.7180422,108730.0,108720.0,0.1364942]
[1749566402771,0.01992,108730.0,108720.0,0.1364942]
[1749566402995,0.01992,108730.0,108720.0,0.16399554]
[1749566403220,0.01992,108730.0,108720.0,0.17853639]
[1749566403923,0.01992,108730.0,108720.0,0.21520706]
[1749566404176,0.01992,108730.0,108720.0,0.17853639]
[1749566404401,0.01992,108730.0,108720.0,0.21520706]
[1749566404630,0.7180422,108730.0,108720.0,0.21520706]
[1749566405099,0.7180422,108730.0,108720.0,0.17853639]
[1749566405310,0.7180422,108730.0,108720.0,0.31724706]
[1749566405530,0.7180422,108730.0,108720.0,0.28057639]
[1749566405751,0.01992,108730.0,108720.0,0.16399554]
[1749566405974,0.01992,108730.0,108720.0,0.1198942]
[1749566405975,0.7180422,108730.0,108720.0,0.1198942]
[1749566406455,1.7875644,108730.0,108720.0,0.0126408]
[1749566406668,1.7718644,108730.0,108720.0,0.0126408]
[1749566407296,1.0737422,108730.0,108720.0,0.0126408]
[1749566407520,1.1650956,108730.0,108720.0,0.0126408]
[1749566408619,1.2671356,108730.0,108720.0,0.0126408]
[1749566408862,1.2514356,108730.0,108720.0,0.0126408]
[1749566409517,1.1600822,108730.0,108720.0,0.0126408]
[1749566409749,0.12196,108730.0,108720.0,0.0290408]
[1749566409978,0.8200822,108730.0,108720.0,0.0441408]
[1749566410234,0.7180422,108730.0,108720.0,0.0441408]
[1749566410666,0.7180422,108730.0,108720.0,0.1354942]
[1749566410901,1.0580422,108730.0,108720.0,0.1354942]
[1749566411616,1.0580422,108730.0,108720.0,0.16303007]
[1749566411617,0.01992,108730.0,108720.0,0.16303007]
[1749566411839,0.01992,108730.0,108720.0,0.18674954]
[1749566412072,0.01992,108730.0,108720.0,0.34379294]
[1749566412318,0.01992,108730.0,108720.0,0.63839294]
[1749566415297,0.7180422,108730.0,108720.0,0.48134954]
[1749566415511,0.7180422,108730.0,108720.0,0.47923877]
[1749566415939,0.7180422,108730.0,108720.0,0.49483877]
[1749566416162,0.7180422,108730.0,108720.0,0.20023877]
[1749566416593,0.01992,108730.0,108720.0,0.20023877]
[1749566416809,0.01992,108730.0,108720.0,0.18724954]
[1749566417232,0.01992,108730.0,108720.0,0.24225294]
[1749566419857,0.01992,108730.0,108720.0,0.20553845]
[1749566423666,0.90198407,108730.0,108720.0,0.20553845]
[1749566423877,0.20386187,108730.0,108720.0,0.20553845]
[1749566424320,0.90198407,108730.0,108720.0,0.20553845]
[1749566424549,0.90198407,108730.0,108720.0,0.34422063]
[1749566425211,0.20386187,108730.0,108720.0,0.34422063]
[1749566425486,0.90198407,108730.0,108720.0,0.34422063]
[1749566425915,0.90198407,108730.0,108720.0,0.30753845]
[1749566426956,0.20386187,108730.0,108720.0,0.30753845]
[1749566427160,0.90198407,108730.0,108720.0,0.30753845]
[1749566427989,0.20386187,108730.0,108720.0,0.30753845]
[1749566428399,0.20386187,108730.0,108720.0,0.34421479]
[1749566428596,0.90198407,108730.0,108720.0,0.34421479]
[1749566429006,0.20386187,108730.0,108720.0,0.24221479]
[1749566429213,0.20386187,108730.0,108720.0,0.34417479]
[1749566429438,0.90198407,108730.0,108720.0,0.34417479]
[1749566430066,0.20386187,108730.0,108720.0,0.34417479]
[1749566430270,0.20386187,108730.0,108720.0,0.30749845]
[1749566431324,0.20386187,108730.0,108720.0,0.34417417]
[1749566431563,0.20386187,108730.0,108720.0,0.37193506]
[1749566431781,0.20386187,108730.0,108720.0,0.33525934]
[1749566433083,0.22225546,108730.0,108720.0,1.23338154]
[1749566433290,0.23145255,108730.0,108720.0,1.23338154]
[1749566433492,0.22225588,108730.0,108720.0,1.17837814]
[1749566434352,0.22225588,108730.0,108720.0,0.48025594]
[1749566434560,0.22225588,108730.0,108720.0,0.53526132]
[1749566435200,0.22225588,108730.0,108720.0,0.33526132]
[1749566439505,0.22225588,108730.0,108720.0,0.28025594]
[1749566440774,0.22225588,108730.0,108720.0,0.35349716]
[1749566441052,0.24064878,108730.0,108720.0,2.08974156]
[1749566441262,0.05670674,108730.0,108720.0,1.39161936]
[1749566441475,0.05670674,108730.0,108720.0,1.31837814]
[1749566441689,0.22225562,108730.0,108720.0,1.31837814]
[1749566442583,0.01992,108730.0,108720.0,2.01650034]
[1749566442805,0.01992,108730.0,108720.0,7.15793501]
[1749566443058,0.21149279,108750.0,108740.0,1.2381222]
[1749566443280,0.20229858,108750.0,108740.0,0.6624534]
[1749566443501,0.20229858,108750.0,108740.0,0.29779805]
[1749566443739,0.20229858,108750.0,108740.0,0.2243734]
[1749566443948,0.20229858,108750.0,108740.0,0.9224956]
[1749566444162,0.20229858,108750.0,108740.0,0.99592025]
[1749566444397,0.20229858,108750.0,108740.0,1.3504611]
[1749566444608,0.20229858,108750.0,108740.0,1.35038361]
[1749566445112,0.2114933,108750.0,108740.0,1.27703645]
[1749566445798,0.01839003,108750.0,108740.0,1.35034514]
[1749566445976,0.21149347,108750.0,108740.0,1.27903645]
[1749566446221,0.01838953,108750.0,108740.0,1.28203645]
[1749566446429,0.03677973,108750.0,108740.0,1.98015865]
[1749566446629,0.22068777,108750.0,108740.0,1.28003645]
[1749566446838,0.0275845,108750.0,108740.0,1.28003645]
[1749566447051,0.03677964,108750.0,108740.0,1.28303645]
[1749566447274,0.01119362,108770.0,108760.0,0.04544085]
[1749566447483,0.20426122,108770.0,108760.0,1.35006551]
[1749566447697,0.02038648,108770.0,108760.0,1.35006551]
[1749566447916,0.02038648,108770.0,108760.0,0.65194331]
[1749566448121,0.03877364,108770.0,108760.0,0.65194331]
[1749566448323,0.03877355,108770.0,108760.0,1.35006551]
[1749566448526,0.02957993,108770.0,108760.0,1.35006551]
[1749566448737,0.01119311,108770.0,108760.0,1.35006551]
[1749566449361,0.002,108770.0,108760.0,1.40206551]
[1749566449564,0.01119303,108770.0,108760.0,1.40206551]
[1749566449768,0.002,108770.0,108760.0,1.40406551]
[1749566450185,0.002,108770.0,108760.0,6.45406551]
[1749566450393,0.002,108770.0,108760.0,6.43079645]
[1749566450597,0.002,108770.0,108760.0,6.52257394]
[1749566451008,0.01119303,108770.0,108760.0,6.52253394]
[1749566451218,0.01119303,108770.0,108760.0,6.42875645]
[1749566451450,0.002,108770.0,108760.0,6.43475645]
[1749566451649,0.01119295,108770.0,108760.0,6.50777265]
[1749566451855,0.02038615,108770.0,108760.0,6.50777265]
[1749566452058,0.02038606,108770.0,108760.0,6.50777265]
[1749566452311,0.02038606,108770.0,108760.0,6.50577265]
[1749566452536,0.02038598,108770.0,108760.0,6.40993265]
[1749566452757,0.21345459,108770.0,108760.0,0.91365045]
[1749566452978,0.21345459,108770.0,108760.0,1.56177265]
[1749566453207,0.20426139,108770.0,108760.0,0.76181045]
[1749566453441,0.20426139,108770.0,108760.0,1.56177265]
[1749566453872,0.20426139,108770.0,108760.0,1.54977265]
[1749566454095,0.20426139,108770.0,108760.0,1.55277265]
[1749566454336,0.19506794,108770.0,108760.0,1.45393265]
[1749566454534,0.19506794,108770.0,108760.0,1.53743734]
[1749566454763,0.19506794,108770.0,108760.0,0.83931514]
[1749566454988,0.19506794,108770.0,108760.0,1.53743734]
[1749566455236,0.19506794,108770.0,108760.0,0.57399105]
[1749566455456,0.19506794,108770.0,108760.0,0.49302859]
[1749566455670,0.19506794,108770.0,108760.0,0.83302859]
[1749566456350,0.19506794,108770.0,108760.0,0.50118774]
[1749566456568,0.89319014,108770.0,108760.0,0.12471183]
[1749566456802,0.19506794,108770.0,108760.0,0.22651183]
[1749566457315,0.19506794,108770.0,108760.0,0.24161183]
[1749566457716,0.19506794,108770.0,108760.0,0.27125268]
[1749566458391,0.19506794,108770.0,108760.0,0.25615268]
[1749566458633,0.19506794,108770.0,108760.0,0.44105268]
[1749566458881,0.19506794,108770.0,108760.0,0.1991534]
[1749566458882,0.21066794,108770.0,108760.0,0.1991534]
[1749566459119,0.92439014,108770.0,108760.0,0.1991534]
[1749566459359,0.92439014,108770.0,108760.0,0.21369425]
[1749566459796,0.92439014,108770.0,108760.0,0.21069425]
[1749566460014,0.92439014,108770.0,108760.0,0.0973534]
[1749566460233,0.92439014,108770.0,108760.0,0.1991534]
[1749566460473,0.92439014,108770.0,108760.0,0.0973534]
[1749566460683,0.92439014,108770.0,108760.0,0.0943534]
[1749566460919,0.22626794,108770.0,108760.0,0.0913534]
[1749566461135,0.22626794,108770.0,108760.0,0.0923534]
[1749566462054,0.22626794,108770.0,108760.0,0.0953534]
[1749566462264,0.19226794,108770.0,108760.0,0.0953534]
[1749566462473,0.19226794,108770.0,108760.0,0.0963534]
[1749566462904,0.82617371,108770.0,108760.0,0.0963534]
[1749566463120,0.82617371,108770.0,108760.0,0.005]
[1749566463571,0.92797371,108770.0,108760.0,0.005]
[1749566463860,0.29406794,108770.0,108760.0,0.005]
[1749566464101,0.82617371,108770.0,108760.0,0.004]
[1749566464335,0.92793371,108770.0,108760.0,0.004]
[1749566465021,0.20229824,108750.0,108740.0,0.11834085]
[1749566465224,0.20229824,108750.0,108740.0,0.22539425]
[1749566466275,0.20229824,108750.0,108740.0,0.22839425]
[1749566466480,0.20229824,108750.0,108740.0,0.24689425]
[1749566466685,0.20229824,108750.0,108740.0,0.61428512]
[1749566466889,0.20229824,108750.0,108740.0,0.61424512]
[1749566467824,0.20229824,108750.0,108740.0,0.65072103]
[1749566470637,0.20229824,108750.0,108740.0,0.53346103]
[1749566470823,0.20229824,108750.0,108740.0,0.61952103]
[1749566471013,0.85210401,108750.0,108740.0,0.17776103]
[1749566471214,0.86840401,108750.0,108740.0,0.12674427]
[1749566471450,0.86840401,108750.0,108740.0,0.0993534]
[1749566471863,0.86840401,108750.0,108740.0,0.008]
[1749566473105,0.66585164,108750.0,108740.0,0.008]
[1749566473541,1.20840401,108750.0,108740.0,0.008]
[1749566473974,1.20840401,108750.0,108740.0,0.005]
[1749566474190,1.20840401,108750.0,108740.0,0.002]
[1749566474191,1.20940401,108750.0,108740.0,0.002]
[1749566474409,1.21882382,108750.0,108740.0,0.002]
[1749566475511,1.21982382,108750.0,108740.0,0.002]
[1749566476369,1.21982382,108750.0,108740.0,0.00204]
[1749566477051,1.35066382,108750.0,108740.0,0.00204]
[1749566477277,1.01066382,108750.0,108740.0,0.00204]
[1749566477510,0.87040401,108750.0,108740.0,0.00204]
[1749566477733,0.33825824,108750.0,108740.0,0.0933934]
[1749566477955,0.32195824,108750.0,108740.0,0.0933934]
[1749566478181,0.97176401,108750.0,108740.0,0.00204]
[1749566478403,1.31176401,108750.0,108740.0,0.00204]
[1749566479093,1.31176401,108750.0,108740.0,0.0933934]
[1749566479094,0.57609824,108750.0,108740.0,0.0933934]
[1749566479272,0.64605824,108750.0,108740.0,0.0933934]
[1749566479489,0.30605824,108750.0,108740.0,0.0933934]
[1749566480131,0.20429824,108750.0,108740.0,0.0933934]
[1749566481444,0.20429824,108750.0,108740.0,0.1096934]
[1749566481900,0.20429824,108750.0,108740.0,0.2114534]
[1749566482122,0.20429824,108750.0,108740.0,0.24249425]
[1749566482550,0.20329824,108750.0,108740.0,0.26988512]
[1749566482784,0.20229824,108750.0,108740.0,0.30637568]
[1749566483262,0.20229824,108750.0,108740.0,0.26989977]
[1749566483483,0.20229824,108750.0,108740.0,0.30637568]
[1749566483701,0.20229824,108750.0,108740.0,0.47897016]
[1749566483945,0.20181097,108750.0,108740.0,0.50639372]
[1749566484171,0.20181097,108750.0,108740.0,0.47897016]
[1749566484589,0.20181097,108750.0,108740.0,0.56127121]
[1749566485232,0.20181097,108750.0,108740.0,0.50655032]
[1749566485436,0.20181097,108750.0,108740.0,0.56127121]
[1749566486498,0.20181097,108750.0,108740.0,0.33465105]
[1749566486709,0.20181097,108750.0,108740.0,0.33565105]
[1749566486925,0.20181097,108750.0,108740.0,0.23293105]
[1749566487130,0.20181097,108750.0,108740.0,0.23393105]
[1749566487545,0.20181097,108750.0,108740.0,0.33565105]
[1749566491241,0.20181097,108750.0,108740.0,1.03311315]
[1749566491484,0.20181097,108750.0,108740.0,1.28191635]
[1749566491705,0.20181097,108750.0,108740.0,0.65747045]
[1749566491936,0.20181097,108750.0,108740.0,1.35493255]
[1749566492560,0.00919447,108760.0,108750.0,0.21454085]
[1749566492780,0.0275823,108760.0,108750.0,2.07271845]
[1749566493011,0.2206679,108760.0,108750.0,1.44827255]
[1749566493216,0.21147394,108760.0,108750.0,1.38444403]
[1749566493869,0.21147394,108760.0,108750.0,1.38644403]
[1749566494078,0.02758281,108760.0,108750.0,1.38644403]
[1749566494248,0.02758196,108760.0,108750.0,1.38644403]
[1749566494486,0.03677634,108760.0,108750.0,1.31342783]
[1749566494722,0.03677634,108760.0,108750.0,1.38662098]
[1749566495047,0.03677634,108760.0,108750.0,1.04662098]
[1749566495284,0.03677634,108760.0,108750.0,0.4129874]
[1749566495285,0.20227964,108760.0,108750.0,0.4129874]
[1749566495480,0.20227964,108760.0,108750.0,0.5146674]
[1749566495656,0.20227964,108760.0,108750.0,0.44147425]
[1749566495897,0.20227964,108760.0,108750.0,0.4963591]
[1749566496122,0.20227964,108760.0,108750.0,0.44147425]
[1749566496732,0.20227964,108760.0,108750.0,0.49635533]
[1749566497940,0.20227964,108760.0,108750.0,0.48927533]
[1749566498142,0.20227964,108760.0,108750.0,0.59095533]
[1749566502347,0.54227964,108760.0,108750.0,0.59095533]
[1749566504693,0.54227964,108760.0,108750.0,0.48927533]
[1749566504911,0.54227964,108760.0,108750.0,0.49395946]
[1749566505139,1.20621322,108760.0,108750.0,0.41539345]
[1749566505367,1.20621322,108760.0,108750.0,0.3879534]
[1749566507139,0.57257964,108760.0,108750.0,0.3879534]
[1749566507360,0.86621322,108760.0,108750.0,0.3879534]
[1749566508009,0.86621322,108760.0,108750.0,0.3859534]
[1749566508225,0.53310327,108750.0,108740.0,0.06606418]
[1749566508442,0.85913685,108750.0,108740.0,0.02948005]
[1749566508692,0.85913685,108750.0,108740.0,0.00204]
[1749566509514,0.85913685,108750.0,108740.0,0.00304]
[1749566509936,0.85913685,108750.0,108740.0,0.00204]
[1749566512649,0.85913685,108750.0,108740.0,0.0933934]
[1749566514302,0.84013685,108750.0,108740.0,0.00204]
[1749566515385,0.84213685,108750.0,108740.0,0.00204]
[1749566516042,0.84313685,108750.0,108740.0,0.00204]
[1749566517152,0.93449025,108750.0,108740.0,0.00204]
[1749566517377,1.27449025,108750.0,108740.0,0.00204]
[1749566518441,1.36584365,108750.0,108740.0,0.00204]
[1749566518900,1.36584365,108750.0,108720.0,0.00204]
[1749566518901,0.20233546,108730.0,108720.0,0.00204]
[1749566519110,0.96996904,108730.0,108720.0,0.00204]
[1749566519319,1.06132244,108730.0,108720.0,0.00204]
[1749566519551,0.20237268,108710.0,108700.0,0.002]
[1749566519774,0.20237268,108710.0,108700.0,0.01057321]
[1749566519775,1.33810626,108710.0,108700.0,0.01057321]
[1749566519987,1.42945966,108710.0,108700.0,0.002]
[1749566520629,0.66522608,108710.0,108700.0,0.002]
[1749566520857,1.33810626,108710.0,108700.0,0.002]
[1749566521065,1.42945966,108710.0,108700.0,0.002]
[1749566521538,1.29885966,108710.0,108700.0,0.002]
[1749566521765,0.79582608,108710.0,108700.0,0.002]
[1749566521981,1.29885966,108710.0,108700.0,0.002]
[1749566522202,0.20237268,108710.0,108700.0,0.002]
[1749566522423,0.30397268,108710.0,108700.0,0.002]
[1749566522632,0.93760626,108710.0,108700.0,0.002]
[1749566522874,0.83600626,108710.0,108700.0,0.002]
[1749566523085,0.83700626,108710.0,108700.0,0.002]
[1749566523344,0.93860626,108710.0,108700.0,0.002]
[1749566523599,0.20337268,108710.0,108700.0,0.0933534]
[1749566523829,0.20337268,108710.0,108700.0,0.10188408]
[1749566524063,0.20337268,108710.0,108700.0,0.11738339]
[1749566524290,0.20337268,108710.0,108700.0,0.1088534]
[1749566524517,0.20337268,108710.0,108700.0,0.11738315]
[1749566525420,0.20337268,108710.0,108700.0,0.131924]
[1749566525644,0.20337268,108710.0,108700.0,0.24892616]
[1749566525862,0.20337268,108710.0,108700.0,0.24892612]
[1749566526076,0.20337268,108710.0,108700.0,0.24892591]
[1749566526306,0.20337268,108710.0,108700.0,0.24039425]
[1749566526537,0.83700626,108710.0,108700.0,0.0933534]
[1749566526802,0.83700626,108710.0,108700.0,0.10188529]
[1749566527039,0.20237268,108710.0,108700.0,0.10188529]
[1749566527268,0.20237268,108710.0,108700.0,0.13382614]
[1749566527489,0.20237268,108710.0,108700.0,0.48269425]
[1749566527710,0.20237268,108710.0,108700.0,0.77729425]
[1749566528173,0.20237268,108710.0,108700.0,0.4329343]
[1749566528418,0.20237268,108710.0,108700.0,0.50709425]
[1749566528642,0.20237268,108710.0,108700.0,0.52269425]
[1749566529083,0.20237268,108710.0,108700.0,0.52261621]
[1749566529565,0.20237268,108710.0,108700.0,0.49243536]
[1749566529566,0.83600626,108710.0,108700.0,0.49243536]
[1749566530008,0.20237268,108710.0,108700.0,0.49243536]
[1749566530995,0.20237268,108710.0,108700.0,0.52197621]
[1749566531235,0.02759567,108710.0,108700.0,1.73948008]
[1749566531483,0.20237302,108710.0,108700.0,1.803575]
[1749566531940,0.20237302,108710.0,108700.0,1.16994142]
[1749566533274,0.20237302,108710.0,108700.0,1.06838142]
[1749566533502,0.8360066,108710.0,108700.0,0.46940897]
[1749566533714,0.8360066,108710.0,108700.0,0.39087536]
[1749566533921,0.8360066,108710.0,108700.0,0.39942319]
[1749566534124,0.8360066,108710.0,108700.0,0.50098319]
[1749566534377,0.20237302,108710.0,108700.0,0.50098319]
[1749566534580,0.8360066,108710.0,108700.0,0.50100942]
[1749566534780,0.8360066,108710.0,108700.0,0.09627536]
[1749566535014,0.8360066,108710.0,108700.0,0.1048496]